fUST/lending_fUST_20251228
["ID","MTS","AMOUNT","RATE_DAILY","PERIOD"]
[399931391,1766885438544,-500.0,0.00013699,2]
[399931393,1766885438554,-159.68076014,0.00013699,2]
[399931395,1766885438563,-225.05169486,0.00013699,2]
[399931397,1766885438573,-500.0,0.00013699,2]
[399931399,1766885438583,-500.0,0.00013699,2]
[399931401,1766885438592,-500.0,0.00013699,2]
[399931403,1766885438602,-500.0,0.00013699,2]
[399931404,1766885438611,-500.0,0.00013699,2]
[399931406,1766885438621,-500.0,0.00013699,2]
[399931409,1766885438631,-500.19853868,0.00013699,2]
[399931411,1766885438641,-500.0,0.00013699,2]
[399931413,1766885438652,-524.52854709,0.00013699,2]
[399931415,1766885438661,-500.0,0.00013699,2]
[399931416,1766885438671,-315.44517682,0.00013699,2]
[399931419,1766885438682,-372.43989008,0.00013699,2]
[399931420,1766885438692,-500.0,0.00013699,2]
[399931422,1766885438703,-500.0,0.00013699,2]
[399931424,1766885438713,-500.0,0.00013699,2]
[399931426,1766885438723,-500.76279856,0.00013699,2]
[399931428,1766885438732,-500.21213035,0.00013699,2]
[399931430,1766885438741,-534.57319666,0.00013699,2]
[399931432,1766885438751,-500.0,0.00013699,2]
[399931435,1766885438762,-500.0,0.00013699,2]
[399931437,1766885438772,-500.4925425,0.00013699,2]
[399931439,1766885438782,-506.77645269,0.00013699,2]
[399931441,1766885438792,-514.24507767,0.00013719,2]
[399931443,1766885438802,-914.21347142,0.00013719,2]
[399931445,1766885438811,-1306.32930848,0.00013719,2]
[399931447,1766885438822,-1881.11420421,0.00013719,2]
[399931449,1766885438832,-483.04575749,0.00013719,2]
[399931451,1766885438842,-300.0,0.00013758,2]
[399931453,1766885438852,-300.0,0.00013758,2]
[399931455,1766885438862,-300.0,0.00013758,2]
[399931456,1766885438872,-300.0,0.00013758,2]
[399931459,1766885438883,-300.0,0.00013758,2]
[399931460,1766885438893,-300.0,0.00013758,2]
[399931461,1766885438903,-300.0,0.00013758,2]
[399931462,1766885438912,-300.0,0.00013758,2]
[399931463,1766885438922,-300.0,0.00013758,2]
[399931464,1766885438932,-300.0,0.00013758,2]
[399931465,1766885438942,-300.0,0.00013758,2]
[399931466,1766885438954,-300.0,0.00013758,2]
[399931467,1766885438964,-300.0,0.00013758,2]
[399931468,1766885438974,-300.0,0.00013758,2]
[399931469,1766885438984,-300.0,0.00013758,2]
[399931470,1766885438994,-600.0,0.00013758,2]
[399931471,1766885439004,-500.0,0.00013821,2]
[399931472,1766885439014,-500.0,0.00013821,2]
[399931473,1766885439024,-519.37448667,0.00013821,2]
[399931474,1766885439034,-195.31523429,0.00013821,2]
[399931475,1766885439045,-500.0,0.00013821,2]
[399931476,1766885439056,-500.0,0.00013821,2]
[399931477,1766885439066,-500.0,0.00013821,2]
[399931478,1766885439075,-500.0,0.00013821,2]
[399931479,1766885439088,-1000.0,0.00013821,2]
[399931480,1766885439099,-500.0,0.00013821,2]
[399931482,1766885439109,-507.46038855,0.00013821,2]
[399931484,1766885439119,-501.6525782,0.00013821,2]
[399931486,1766885439129,-500.0,0.00013821,2]
[399931488,1766885439139,-974.87364754,0.00013821,2]
[399931490,1766885439149,-869.48236349,0.00014128,2]
[399931491,1766885439162,-352.23092262,0.00014196,2]
[399931493,1766885439171,-1428.45854909,0.0001424,2]
[399931495,1766885439182,-1000.0,0.00014247,2]
[399931497,1766885439191,-1000.0,0.00014247,2]
[399931499,1766885439201,-1000.0,0.00014247,2]
[399931501,1766885439210,-1000.0,0.00014247,2]
[399931503,1766885439220,-1000.0,0.00014247,2]
[399931505,1766885439229,-1000.0,0.00014247,2]
[399931507,1766885439239,-1000.0,0.00014247,2]
[399931509,1766885439248,-500.78821932,0.00014247,2]
[399931511,1766885439257,-1000.0,0.00014247,2]
[399931513,1766885439268,-1000.0,0.00014247,2]
[399931515,1766885439278,-1098.60328616,0.00014247,2]
[399931517,1766885439287,-1000.0,0.00014247,2]
[399931519,1766885439297,-13648.7076695,0.00014414,2]
[399931521,1766885439307,-1762.0316,0.00014414,2]
[399931523,1766885439317,-1762.0316,0.00014414,2]
[399931525,1766885439327,-1762.0316,0.00014414,2]
[399931527,1766885439337,-461.67526834,0.00014518,2]
[399931533,1766885439379,-250.0,0.00014518,2]
[399931535,1766885439389,-250.0,0.00014518,2]
[399931537,1766885439399,-500.0,0.00014518,2]
[399931539,1766885439409,-250.0,0.00014518,2]
[399931541,1766885439418,-500.0,0.00014518,2]
[399931543,1766885439428,-250.0,0.00014518,2]
[399931545,1766885439438,-500.0,0.00014518,2]
[399931547,1766885439447,-250.0,0.00014518,2]
[399931549,1766885439457,-500.0,0.00014518,2]
[399931551,1766885439467,-250.0,0.00014518,2]
[399931553,1766885439476,-500.0,0.00014518,2]
[399931555,1766885439486,-250.0,0.00014518,2]
[399931557,1766885439495,-500.0,0.00014518,2]
[399931559,1766885439505,-153.99003068,0.00014518,2]
[399931561,1766885439515,-500.0,0.00014518,2]
[399931563,1766885439524,-500.0,0.00014518,2]
[399931565,1766885439533,-500.0,0.00014518,2]
[399931567,1766885439541,-582.54529705,0.00014518,2]
[399931569,1766885439551,-250.0,0.00014518,2]
[399931571,1766885439560,-250.0,0.00014518,2]
[399931572,1766885439569,-250.0,0.00014518,2]
[399931574,1766885439579,-251.26114732,0.00014518,2]
[399931576,1766885439589,-634.01566071,0.00014759,2]
[399931578,1766885439599,-590.48711673,0.00014795,2]
[399931580,1766885439609,-420.0,0.00014863,2]
[399931582,1766885439618,-503.0,0.00014917,2]
[399931584,1766885439628,-151.0,0.00015,2]
[399931586,1766885439637,-478.75725327,0.00015066,2]
[399931588,1766885439647,-800.0,0.0001507,2]
[399931590,1766885439656,-800.0,0.00015081,2]
[399931592,1766885439665,-800.0,0.00015091,2]
[399931594,1766885439675,-800.0,0.00015102,2]
[399931596,1766885439684,-800.0,0.00015103,2]
[399931598,1766885439694,-2284.14090074,0.00015125,2]
[399931600,1766885439703,-800.0,0.00015126,2]
[399931602,1766885439713,-720.0,0.00015134,2]
[399931604,1766885439723,-800.0,0.00015141,2]
[399931606,1766885439732,-800.0,0.00015153,2]
[399931608,1766885439741,-800.0,0.00015158,2]
[399931610,1766885439751,-800.0,0.00015185,2]
[399931612,1766885439760,-800.0,0.00015202,2]
[399931614,1766885439770,-463.629398,0.0001521,2]
[399931616,1766885439779,-463.62939799,0.00015211,2]
[399931618,1766885439789,-800.0,0.00015212,2]
[399931620,1766885439798,-642.1191914,0.00015228,2]
[399931622,1766885439809,-800.0,0.00015241,2]
[399931624,1766885439818,-800.0,0.00015244,2]
[399931626,1766885439828,-800.0,0.00015251,2]
[399931629,1766885439837,-800.0,0.00015256,2]
[399931632,1766885439847,-2316.80093696,0.00015264,2]
[399931634,1766885439858,-800.0,0.00015265,2]
[399931636,1766885439878,-800.0,0.00015266,2]
[399931638,1766885439888,-339.94388919,0.00015273,2]
[399931641,1766885439898,-164.0,0.000153,2]
[399931643,1766885439907,-800.0,0.00015309,2]
[399931645,1766885439916,-1127.13895238,0.00015321,2]
[399931647,1766885439925,-800.0,0.00015327,2]
[399931649,1766885439935,-800.0,0.00015337,2]
[399931651,1766885439944,-800.0,0.00015344,2]
[399931653,1766885439953,-3383.0,0.000154,30]
[399931655,1766885439963,-2415.22878747,0.00015503,2]
[399931657,1766885439973,-533.59629693,0.00015614,2]
[399931659,1766885439983,-156.47288383,0.00015642,2]
[399931661,1766885439992,-154.9841517,0.00015642,2]
[399931663,1766885440002,-1761.15461309,0.00015883,2]
[399931665,1766885440011,-3477.92945396,0.00015971,2]
[399931667,1766885440020,-400.81808063,0.00016013,2]
[399931670,1766885440031,-587.0,0.00016291,2]
[399931672,1766885440041,-160.0,0.00016317,2]
[399931675,1766885440051,-4733.84842344,0.0001644,2]
[399931678,1766885440064,-2536.06264285,0.00016446,2]
[399931680,1766885440073,-1165.48785929,0.00016507,2]
[399931684,1766885440084,-864.0,0.00016647,2]
[399931687,1766885440094,-500.0,0.00016772,2]
[399931690,1766885440106,-260.0,0.00016865,2]
[399931693,1766885440118,-500.0,0.00017046,2]
[399931697,1766885440129,-3045.4383281,0.00017067,2]
[399931700,1766885440139,-391.7997367,0.00017273,2]
[399931702,1766885440149,-1363.0,0.00017301,2]
[399931704,1766885440158,-633.0,0.00017301,2]
[399931706,1766885440167,-2161.0,0.00017301,2]
[399931708,1766885440178,-416.0,0.00017301,2]
[399931710,1766885440188,-500.0,0.0001732,2]
[399931712,1766885440201,-360.0,0.00017413,2]
[399931714,1766885440210,-500.0,0.00017594,2]
[399931716,1766885440219,-968.42044183,0.000176,2]
[399931718,1766885440228,-679.5291418,0.00017659,2]
[399931720,1766885440239,-250.34750725,0.0001774,2]
[399931722,1766885440249,-823.0,0.00017855,2]
[399931724,1766885440258,-500.0,0.00017868,2]
[399931726,1766885440268,-460.0,0.00017961,2]
[399931728,1766885440277,-1041.66666667,0.00018139,2]
[399931730,1766885440287,-500.0,0.00018142,2]
[399931732,1766885440297,-1000.0,0.00018312,2]
[399931734,1766885440306,-184.461847,0.00018493,2]
[399931736,1766885440316,-560.0,0.00018508,2]
[399931739,1766885440326,-302.75782099,0.000189,2]
[399931741,1766885440336,-100000.0,0.0001899,2]
[399931742,1766885440345,-660.0,0.00019056,2]
[399931743,1766885440354,-302.75782099,0.00019089,2]
[399931744,1766885440364,-187.585006,0.00019178,2]
[399931746,1766885440373,-187.585006,0.00019178,2]
[399931748,1766885440383,-187.585006,0.00019178,2]
[399931750,1766885440392,-187.585006,0.00019178,2]
[399931751,1766885440402,-151.0,0.00019178,2]
[399931752,1766885440411,-151.0,0.00019178,2]
[399931753,1766885440420,-157.681239,0.00019178,2]
[399931754,1766885440430,-151.0,0.00019178,2]
[399931755,1766885440440,-150.0,0.00019178,2]
[399931756,1766885440450,-5266.734898,0.00019178,2]
[399931757,1766885440459,-5266.734898,0.00019178,2]
[399931758,1766885440469,-5266.734898,0.00019178,2]
[399931759,1766885440478,-5266.734898,0.00019178,2]
[399931760,1766885440487,-166.24,0.000192,2]
[399931761,1766885440497,-1870.59,0.000192,2]
[399931762,1766885440506,-172.4,0.000192,2]
[399931763,1766885440515,-164.83,0.000192,2]
[399931764,1766885440525,-13750.84,0.000192,2]
[399931765,1766885440535,-151.0,0.000192,2]
[399931766,1766885440544,-151.0,0.000192,2]
[399931767,1766885440553,-151.0,0.000192,2]
[399931768,1766885440562,-151.0,0.000192,2]
[399931769,1766885440571,-443.6555842,0.00019273,2]
[399931770,1766885440581,-302.75782099,0.00019278,2]
[399931771,1766885440590,-37674.7962661,0.00019313,2]
[399931772,1766885440599,-187.029293,0.00019313,2]
[399931773,1766885440609,-150.0,0.00019315,2]
[399931774,1766885440618,-187.585006,0.0001933,2]
[399931775,1766885440627,-187.585006,0.0001933,2]
[399931776,1766885440637,-187.585006,0.0001933,2]
[399931777,1766885440646,-187.585006,0.0001933,2]
[399931778,1766885440657,-1165.48785929,0.00019355,2]
[399931779,1766885440666,-249.0,0.00019452,2]
[399931780,1766885440677,-151.0,0.00019467,2]
[399931781,1766885440686,-151.0,0.00019467,2]
[399931782,1766885440695,-151.0,0.00019467,2]
[399931783,1766885440705,-5266.734898,0.00019467,2]
[399931784,1766885440714,-5266.734898,0.00019467,2]
[399931785,1766885440724,-5266.734898,0.00019467,2]
[399931786,1766885440733,-5266.734898,0.00019467,2]
[399931787,1766885440742,-302.75782099,0.00019467,2]
[399931788,1766885440752,-329.0,0.0001957,2]
[399931789,1766885440761,-760.0,0.00019604,2]
[399931790,1766885440771,-302.75782099,0.00019656,2]
[399931791,1766885440781,-1056085.71769266,0.000198,2]
[399931792,1766885440790,-454.13673149,0.00019845,4]
[399931793,1766885440799,-303.1451944,0.00019863,2]
[399931794,1766885440809,-303.1451944,0.00019863,2]
[399931795,1766885440818,-187.03999769,0.000199,2]
[399931796,1766885440828,-1596.24076875,0.0002,2]
[399931797,1766885440844,-966.0,0.0002,2]
[399931798,1766885440865,-150.0,0.0002,2]
[399931799,1766885440887,-151.53705981,0.0002,2]
[399931800,1766885440907,-9176.21347088,0.0002,7]
[399931801,1766885440917,-159.65330933,0.0002,2]
[399931802,1766885440927,-2000.0,0.0002,7]
[399931803,1766885440937,-152.86212733,0.00020034,4]
[399931804,1766885440947,-390.8297803,0.0002013,2]
[399931805,1766885440956,-1000.0,0.00020143,2]
[399931806,1766885440965,-244.0,0.00020143,2]
[399931807,1766885440976,-860.0,0.00020152,2]
[399931808,1766885440985,-949.533287,0.00020187,2]
[399931809,1766885440994,-1363.0,0.00020301,2]
[399931810,1766885441004,-633.0,0.00020301,2]
[399931811,1766885441013,-2161.0,0.00020301,2]
[399931812,1766885441024,-385.929,0.00020301,2]
[399931813,1766885441034,-500.0,0.00020356,7]
[399931814,1766885441043,-170.46646183,0.00020487,2]
[399931815,1766885441054,-1386.13142695,0.0002061,2]
[399931816,1766885441066,-960.0,0.000207,2]
[399931817,1766885441075,-164.83,0.000208,2]
[399931818,1766885441086,-160.0,0.00020845,3]
[399931819,1766885441095,-13750.84,0.000209,2]
[399931820,1766885441105,-151.0,0.000209,2]
[399931821,1766885441115,-151.0,0.000209,2]
[399931822,1766885441126,-151.0,0.000209,2]
[399931823,1766885441135,-151.0,0.000209,2]
[399931824,1766885441145,-255.83296158,0.000209,2]
[399931825,1766885441154,-150.0,0.00021,2]
[399931826,1766885441163,-1870.59,0.00021,2]
[399931827,1766885441172,-48274.21960834,0.00021,2]
[399931828,1766885441182,-5224.13281231,0.00021085,2]
[399931829,1766885441192,-5000.0,0.00021085,2]
[399931830,1766885441201,-5000.0,0.00021085,2]
[399931831,1766885441211,-5000.0,0.00021085,2]
[399931832,1766885441221,-5000.0,0.00021085,2]
[399931833,1766885441230,-1060.0,0.00021248,2]
[399931834,1766885441240,-495.51143171,0.00021273,2]
[399931835,1766885441249,-500.0,0.00021452,7]
[399931836,1766885441259,-860.66640416,0.00021478,7]
[399931837,1766885441269,-1302.26264065,0.00021478,7]
[399931838,1766885441279,-1029.29742129,0.00021534,2]
[399931839,1766885441289,-1160.0,0.00021796,2]
[399931840,1766885441298,-184.461847,0.00021918,2]
[399931841,1766885441308,-187.585006,0.00021925,2]
[399931842,1766885441317,-187.585006,0.00021925,2]
[399931843,1766885441327,-187.585006,0.00021925,2]
[399931844,1766885441337,-187.585006,0.00021925,2]
[399931845,1766885441347,-1763.00414697,0.00021926,3]
[399931846,1766885441356,-2000.0,0.00021934,3]
[399931847,1766885441366,-2000.0,0.00021943,3]
[399931848,1766885441375,-2000.0,0.00021952,3]
[399931849,1766885441385,-2000.0,0.00021961,3]
[399931850,1766885441396,-2000.0,0.00021961,3]
[399931851,1766885441406,-2000.0,0.0002197,3]
[399931852,1766885441416,-2000.0,0.0002197,3]
[399931853,1766885441425,-151.0,0.0002197,2]
[399931854,1766885441435,-151.0,0.0002197,2]
[399931855,1766885441444,-2000.0,0.00021978,3]
[399931856,1766885441454,-2000.0,0.00021978,3]
[399931857,1766885441464,-5266.734898,0.00021979,2]
[399931858,1766885441474,-5266.734898,0.00021979,2]
[399931859,1766885441484,-5266.734898,0.00021979,2]
[399931860,1766885441494,-5266.734898,0.00021979,2]
[399931861,1766885441505,-2000.0,0.00021987,3]
[399931862,1766885441514,-2000.0,0.00021987,3]
[399931863,1766885441524,-644.30515823,0.00021988,3]
[399931864,1766885441534,-2000.0,0.00021996,3]
[399931865,1766885441543,-2000.0,0.00021996,3]
[399931866,1766885441552,-171227.53136813,0.00022,14]
[399931867,1766885441561,-151.0,0.00022,2]
[399931868,1766885441570,-151.0,0.00022,2]
[399931869,1766885441580,-151.0,0.00022,2]
[399931870,1766885441589,-244.563415,0.00022,2]
[399931871,1766885441598,-187.585006,0.00022,2]
[399931872,1766885441607,-187.585006,0.00022,2]
[399931873,1766885441617,-187.585006,0.00022,2]
[399931874,1766885441626,-187.585006,0.00022,2]
[399931875,1766885441635,-151.0,0.00022,2]
[399931876,1766885441644,-227.695968,0.00022,2]
[399931877,1766885441654,-5266.734898,0.00022,2]
[399931878,1766885441663,-5266.734898,0.00022,2]
[399931879,1766885441672,-5266.734898,0.00022,2]
[399931880,1766885441681,-1136.53494897,0.00022,2]
[399931881,1766885441697,-4130.19994903,0.00022,2]
[399931882,1766885441706,-150.046638,0.00022,2]
[399931883,1766885441715,-1000.0,0.00022157,10]
[399931884,1766885441724,-492.0,0.00022157,10]
[399931885,1766885441734,-600.0,0.00022164,2]
[399931886,1766885441743,-1165.48785929,0.00022204,2]
[399931887,1766885441752,-773.23020183,0.00022313,7]
[399931888,1766885441762,-1260.0,0.00022344,2]
[399931889,1766885441772,-600.0,0.00022394,2]
[399931890,1766885441781,-293.85069116,0.00022418,25]
[399931891,1766885441791,-151.0,0.00022483,2]
[399931892,1766885441800,-2000.0,0.000225,7]
[399931893,1766885441810,-600.0,0.00022625,2]
[399931894,1766885441819,-160.0,0.00022737,4]
[399931895,1766885441828,-163.193767,0.00022737,5]
[399931896,1766885441838,-172.4,0.000228,7]
[399931897,1766885441847,-13162.10466238,0.000228,2]
[399931898,1766885442300,-588.73533762,0.000228,2]
[399931899,1766885442311,-3089.8278865,0.00022844,7]
[399931900,1766885442320,-1830.6143665,0.00022845,7]
[399931901,1766885442330,-600.0,0.00022856,2]
[399931902,1766885442340,-1360.0,0.00022892,2]
[399931903,1766885442350,-293.85069116,0.00022911,26]
[399931904,1766885442359,-1041.66666667,0.00023,3]
[399931905,1766885442368,-164.83,0.00023,7]
[399931906,1766885442378,-151.0,0.00023087,2]
[399931907,1766885442388,-600.0,0.00023087,2]
[399931908,1766885442397,-8360.61488207,0.000231,2]
[399931909,1766885442744,-3e-08,0.00014414,2]
[399931925,1766885445324,-143.08410646,0.00013719,2]
[399931934,1766885446517,-356.91589354,0.00013719,2]
[399931935,1766885446528,-500.0,0.00013993,2]
[399931936,1766885446539,-500.0,0.00014267,2]
[399931937,1766885446550,-500.0,0.00014541,2]
[399931938,1766885446560,-1545.74642398,0.00014582,2]
[399931939,1766885446572,-500.0,0.00014815,2]
[399931940,1766885446582,-500.0,0.00015089,2]
[399931941,1766885446592,-500.0,0.00015363,2]
[399931942,1766885446603,-500.0,0.00015637,2]
[399931943,1766885446613,-500.0,0.00015911,2]
[399931944,1766885446624,-500.0,0.00016185,2]
[399931945,1766885446633,-504.40166717,0.00016459,2]
[399931946,1766885446643,-1066.0,0.0002,2]
[399931947,1766885446654,-2000.0,0.00021952,3]
[399931948,1766885446664,-1639.38511793,0.000231,2]
[399931949,1766885446675,-747.0,0.000231,10]
[399931950,1766885446685,-4284.85605561,0.000231,10]
[399931951,1766885453564,4182.56097234,0.00013173,2]
[399931952,1766885453597,10000.01,0.00013173,2]
[399931953,1766885453630,10000.01,0.00013173,2]
[399931954,1766885453660,10000.01,0.00013173,2]
[399931955,1766885453690,10000.01,0.00013173,2]
[399931956,1766885453720,10000.01,0.00013173,2]
[399931957,1766885453749,10000.01,0.00013173,2]
[399931958,1766885453779,10000.01,0.00013173,2]
[399931959,1766885453809,10000.01,0.00013173,2]
[399931960,1766885453840,10000.01,0.00013173,2]
[399931961,1766885480099,-5000.0,0.00013041,10]
[399931962,1766885480350,-300.0,0.00013172,2]
[399931963,1766885485742,5000.0,0.00013173,2]
[399931964,1766885488911,255.21,0.0001,2]
[399931965,1766885491974,255.21,0.000102,2]
[399931966,1766885493392,292.71067303,0.00030134,120]
[399931967,1766885493962,150.0,6.026e-05,2]
[399931968,1766885494394,272.01,6.313e-05,2]
[399931969,1766885494484,255.21,0.000104,2]
[399931970,1766885494834,408.02,6.6e-05,2]
[399931971,1766885495249,544.03,6.887e-05,2]
[399931972,1766885495688,680.03,7.174e-05,2]
[399931973,1766885496141,816.04,7.46e-05,2]
[399931974,1766885496598,764.25,7.747e-05,2]
[399931975,1766885496622,187.79,7.747e-05,2]
[399931976,1766885496946,255.21,0.000106,2]
[399931977,1766885497137,1088.05,8.034e-05,2]
[399931978,1766885497588,1224.06,8.321e-05,2]
[399931979,1766885497991,1360.06,8.608e-05,2]
[399931980,1766885499447,255.21,0.000108,2]
[399931981,1766885500270,228.16372479,0.00030134,120]
[399931982,1766885501811,1319.29997572,0.00013173,2]
[399931983,1766885501923,255.21,0.00011,2]
[399931984,1766885502724,183.095,0.00013041,2]
[399931985,1766885505300,150.77858317,0.00030134,120]
[399931986,1766885509799,3872.02502428,0.00013173,2]
[399931987,1766885509824,1127.97497572,0.00013173,2]
[399931988,1766885510441,500.0,0.00030134,120]
[399931989,1766885510729,228.40302341,0.00030134,120]
[399931990,1766885516885,-115.69502428,0.00013173,2]
[399931991,1766885516966,-10000.01,0.00013173,2]
[399931992,1766885517096,-10000.01,0.00013173,2]
[399931993,1766885517196,-10000.01,0.00013173,2]
[399931994,1766885517447,-10000.01,0.00013173,2]
[399931995,1766885517603,-10000.01,0.00013173,2]
[399931996,1766885517723,-10000.01,0.00013173,2]
[399931997,1766885519652,-10000.01,0.00013173,2]
[399931998,1766885519749,-10000.01,0.00013173,2]
[399931999,1766885519870,-10000.01,0.00013173,2]
[399932000,1766885520020,-10000.01,0.00013173,2]
[399932001,1766885520499,302.11067974,0.00030134,120]
[399932002,1766885527129,245.16607772,0.00030134,120]
[399932003,1766885528739,-300.0,0.00013172,2]
[399932004,1766885530496,226.65899217,0.00030134,120]
[399932005,1766885533664,5000.0,0.00013172,2]
[399932006,1766885541947,169.25249567,0.00030134,120]
[399932007,1766885549877,4042.0705424,0.00013173,2]
[399932008,1766885554815,165.57010076,0.00030134,120]
[399932009,1766885557845,5000.0,0.00013173,2]
[399932010,1766885565023,319.17666188,0.00030134,120]
[399932011,1766885571072,178.75,6.097e-05,2]
[399932012,1766885571507,357.5,6.387e-05,2]
[399932013,1766885571947,421.6894576,6.677e-05,2]
[399932014,1766885571976,114.5605424,6.677e-05,2]
[399932015,1766885572411,715.0,6.967e-05,2]
[399932016,1766885572859,893.75,7.258e-05,2]
[399932017,1766885573296,1072.5,7.548e-05,2]
[399932018,1766885573737,1251.25,7.838e-05,2]
[399932019,1766885573926,500.0,0.00030134,120]
[399932020,1766885574066,291.78374291,0.00030134,120]
[399932021,1766885574167,500.0,0.00030134,120]
[399932022,1766885574209,1429.99,8.129e-05,2]
[399932023,1766885574417,204.30463931,0.00030134,120]
[399932024,1766885574621,1608.74,8.419e-05,2]
[399932025,1766885575188,1787.49,8.709e-05,2]
[399932026,1766885581172,263.37198661,0.00030134,120]
[399932027,1766885581398,1126.7294576,0.00013173,2]
[399932028,1766885581423,3873.2705424,0.00013173,2]
[399932029,1766885582683,300.0,0.00013172,2]
[399932030,1766885582934,300.0,0.00013172,2]
[399932031,1766885591844,1200.0,0.00013172,2]
[399932032,1766885593712,165.75658225,0.00030134,120]
[399932033,1766885594512,286.97853404,0.00030134,120]
[399932035,1766885598210,326.48820891,0.00030134,120]
[399932037,1766885604815,4326.7394576,0.00013173,2]
[399932038,1766885604837,673.2605424,0.00013173,2]
[399932039,1766885621472,592.83726124,0.00013073,2]
[399932041,1766885628266,5000.0,0.00013173,2]
[399932042,1766885639858,176.53941996,0.00030134,120]
[399932043,1766885642200,300.0,0.00013172,2]
[399932044,1766885642503,185.72034064,0.00013172,2]
[399932045,1766885642834,208.46666693,0.00013172,2]
[399932046,1766885644511,579.02064957,0.00013172,2]
[399932047,1766885648667,150.0,6.092e-05,2]
[399932048,1766885649097,150.0,6.382e-05,2]
[399932049,1766885649553,160.87,6.672e-05,2]
[399932050,1766885650002,214.5,6.962e-05,2]
[399932051,1766885650462,268.12,7.252e-05,2]
[399932052,1766885650869,321.75,7.542e-05,2]
[399932053,1766885651309,375.37,7.832e-05,2]
[399932054,1766885651695,1493.35508162,0.00013173,2]
[399932055,1766885651717,3506.64491838,0.00013173,2]
[399932056,1766885651765,429.0,8.122e-05,2]
[399932057,1766885652193,482.62,8.412e-05,2]
[399932058,1766885652575,536.25,8.702e-05,2]
[399932059,1766885666307,253.89272903,0.00030134,120]
[399932060,1766885669629,222.05,0.0001,2]
[399932061,1766885672117,222.05,0.000102,2]
[399932062,1766885674794,222.05,0.000104,2]
[399932063,1766885675179,4379.34508162,0.00013173,2]
[399932064,1766885675206,620.65491838,0.00013173,2]
[399932065,1766885677630,222.05,0.000106,2]
[399932066,1766885680152,222.05,0.000108,2]
[399932067,1766885683209,222.05,0.00011,2]
[399932068,1766885685547,359.18023012,0.00013172,2]
[399932069,1766885685705,401.95027681,0.00013172,2]
[399932070,1766885685912,500.0,0.00013172,2]
[399932071,1766885698758,5000.0,0.00013173,2]
[399932072,1766885702342,300.0,0.00013172,2]
[399932073,1766885702373,1200.0,0.00013172,2]
[399932074,1766885703151,300.0,0.00013172,2]
[399932075,1766885704893,450.0,0.00013172,2]
[399932077,1766885712917,202.07457469,0.00013172,2]
[399932078,1766885712945,297.92542531,0.00013172,2]
[399932079,1766885712974,500.0,0.00013172,2]
[399932080,1766885713010,500.0,0.00013172,2]
[399932081,1766885713040,500.0,0.00013172,2]
[399932082,1766885713074,500.0,0.00013172,2]
[399932083,1766885713107,500.0,0.00013172,2]
[399932084,1766885713139,500.0,0.00013172,2]
[399932085,1766885713170,500.0,0.00013172,2]
[399932086,1766885713203,300.0,0.00013172,2]
[399932087,1766885713233,247.26092056,0.00013172,2]
[399932088,1766885713998,500.0,0.00013172,2]
[399932089,1766885715476,171.78804321,0.00013073,2]
[399932090,1766885722697,4983.03561092,0.00013173,2]
[399932091,1766885722720,16.96438908,0.00013173,2]
[399932092,1766885722848,150.0,6.147e-05,2]
[399932093,1766885723274,150.0,6.44e-05,2]